[Event "Chess Ladies Graz 2024"]
[Site "Graz"]
[Date "2024.02.29"]
[Round "6.1"]
[White "Daulyte-Cornette, Deimante"]
[Black "Polterauer, Chiara"]
[Result "1-0"]
[ECO "C50"]
[WhiteElo "2372"]
[BlackElo "2189"]
[Annotator "TA"]
[PlyCount "119"]
[EventDate "2024.02.25"]
[EventType "tourn"]
[EventCountry "AUT"]
[SourceTitle "playchess.com"]
[Source "ChessBase"]
[SourceQuality "1"]
[TimeControl "40/5400+30:1800+30"]

{[%evp 22,119,25,19,26,16,19,18,12,0,29,25,31,29,37,12,43,0,0,0,0,0,0,0,0,0,0,0,0,0,0,0,0,0,23,9,26,17,14,19,59,46,49,21,18,14,16,12,12,12,12,12,13,8,36,14,89,94,79,87,78,81,118,107,148,135,238,172,254,159,556,538,527,514,678,670,912,960,3350,2011,6410,5473,4810,4698,29969,6007,12837,0,29973,29969,29969,29970,29974,29975,29977,5915,29981,29982,29985,29986]} 1. e4 {[%emt 0:00:03]} e5 {[%emt 0:00:06]} 2. Nf3 {[%emt 0:00:05]} Nc6 {[%emt 0:00:03]} 3. Bc4 {[%emt 0:00:09]} Bc5 {[%emt 0:00:06]} 4. d3 {[%emt 0:00:16]} Nf6 {[%emt 0:00:20]} 5. Nc3 {[%emt 0:00:10]} d6 {[%emt 0:00:49]} 6. Na4 {[%emt 0:00:24]} Bb6 {[%emt 0:01:52] C50: Italienische Partie.} 7. a3 {[%emt 0:00:22]} Be6 {[%emt 0:02:10]} 8. Bxe6 {[%emt 0:01:44]} fxe6 {[%emt 0:00:05]} 9. O-O {[%emt 0:01:12]} O-O {[%emt 0:00:21]} 10. c3 {[%emt 0:00:45]} Qe8 {[%emt 0:06:27]} 11. b4 {[%emt 0:01:28]} h6 {[%emt 0:09:36]} 12. Ra2 {[%emt 0:04:12]} Nh5 {[%emt 0:02:13]} (12... Qg6 {wäre vielleicht verwirrender.} 13. h3 Nh5 14. Kh2 Nf4) 13. g3 $146 {[%emt 0:20:14]} ({Predecessor:} 13. Nxb6 axb6 14. a4 Nf4 15. g3 Ng6 16. Ne1 Rf6 17. Ng2 b5 18. Qb3 bxa4 19. Rxa4 Rxa4 20. Qxa4 {1-0 Kosteniuk,A (2537)-Ovod,E (2185) Wch Rapid (Women) 2022 (2)}) 13... Nf6 {[%emt 0:09:17]} 14. Nh4 {[%emt 0:05:28]} Qh5 {[%emt 0:09:23]} 15. Qb3 {[%emt 0:06:25]} Rae8 {[%emt 0:00:58]} 16. Nxb6 {[%emt 0:00:41]} axb6 {[%emt 0:00:07]} 17. f3 {[%emt 0:06:03]} Nh7 {[%emt 0:03:27]} 18. Qd1 {[%emt 0:11:32]} Rf6 {[%emt 0:02:24]} 19. f4 {[%emt 0:05:09]} Qxd1 {[%emt 0:02:10]} 20. Rxd1 {[%emt 0:00:05]} exf4 {[%emt 0:00:20]} 21. gxf4 {[%emt 0:00:09]} g5 {[%emt 0:08:41]} 22. Rg2 {[%emt 0:01:37]} Kf7 {[%emt 0:00:19]} 23. fxg5 {[%emt 0:01:34]} hxg5 {[%emt 0:00:05]} 24. Bxg5 {[%emt 0:00:47]} Nxg5 {[%emt 0:00:05]} 25. Rxg5 {[%emt 0:00:04]} Rh8 {[%emt 0:00:42]} 26. Ng2 $1 {[%emt 0:00:18]} Ne5 {[%emt 0:00:54]} 27. Ne1 {[%emt 0:00:22]} Rfh6 {[%emt 0:00:37]} 28. d4 {[%emt 0:02:19]} Nc4 {[%emt 0:09:32]} 29. Nf3 {[%emt 0:02:48]} Rh3 {[%emt 0:08:21]} 30. Kf2 {[%emt 0:05:35]} Nxa3 {[%emt 0:02:32]} 31. Rdg1 {[%emt 0:04:13]} Rf8 {[%emt 0:01:24]} 32. R1g3 {[%emt 0:01:34]} Rxg3 {[%emt 0:00:25]} 33. Rxg3 {[%emt 0:01:55]} Nb1 {[%emt 0:04:30]} 34. Ng5+ {[%emt 0:05:38]} Ke7+ {[%emt 0:01:32]} 35. Ke2 {[%emt 0:01:38]} Rh8 {[%emt 0:01:15]} 36. h3 {[%emt 0:01:25]} Kf6 {[%emt 0:01:36]} 37. Kd3 {[%emt 0:00:48]} b5 {[%emt 0:00:20]} 38. Nf3 {[%emt 0:01:28]} e5 {[%emt 0:02:19] [#]} (38... Na3 $11) 39. h4 $1 $16 {[%emt 0:02:07]} Na3 {[%emt 0:01:43]} 40. Rg5 {[%emt 0:01:56]} Nc4 {[%emt 0:02:23]} 41. h5 {[%emt 0:35:25]} Rh6 {[%emt 0:35:31] [#]} 42. Ke2 $1 {[%emt 0:00:00]} c6 {[%emt 0:00:00]} 43. Kf2 {[%emt 0:00:00]} b6 {[%emt 0:00:00]} (43... Ke7 $16 44. dxe5 dxe5 45. Nxe5 Rf6+ 46. Ke2 Nd6 47. Rg7+ Kf8) 44. Kg3 {[%emt 0:00:00]} c5 {[%emt 0:00:00]} (44... Ke6 $142 45. Kg4 Ne3+ 46. Kg3 d5 47. Rxe5+ Kd6 48. exd5 Nxd5) 45. Kh4 {[%emt 0:00:00]} Rh8 $2 {[%emt 0:00:00]} (45... exd4 $16 46. cxd4 cxd4) 46. Rg6+ $18 {[%emt 0:00:00]} Ke7 {[%emt 0:00:00]} 47. dxe5 {[%emt 0:00:00]} dxe5 {[%emt 0:00:00]} 48. h6 {[%emt 0:00:00]} cxb4 {[%emt 0:00:00]} 49. cxb4 {[%emt 0:00:00]} Nd6 {[%emt 0:08:00]} 50. Ng5 {[%emt 0:00:00]} Ne8 {[%emt 0:00:00]} 51. Re6+ {[%emt 0:01:14]} Kd7 {[%emt 0:00:00]} 52. Rxb6 {[%emt 0:00:48]} Ke7 {[%emt 0:00:00]} 53. Rb7+ {[%emt 0:01:41]} (53. h7 $142 Kd7 54. Rg6 (54. Rxb5 Nf6 $18) 54... Ke7 55. Rg8 Rxh7+ 56. Nxh7 Nd6 57. Rg7+ Kd8 58. Nf6) 53... Kf6 {[%emt 0:00:00]} 54. Rb6+ {[%emt 0:01:21]} (54. Rxb5 Nd6 55. Rb6 Rxh6+ 56. Kg4 Ke7 $11) (54. Kh5 $18 Ng7+ 55. Kg4 (55. Rxg7 Rxh6+ 56. Kxh6 $11)) 54... Ke7 {[%emt 0:00:00]} 55. Re6+ {[%emt 0:00:50]} Kd7 {[%emt 0:00:00]} 56. Kg4 {[%emt 0:00:44]} (56. Rxe5 Rxh6+ 57. Kg4 Nc7 $14) 56... Nc7 {[%emt 0:00:00]} 57. Rg6 {[%emt 0:00:14]} ({Nicht} 57. Rxe5 Rxh6 58. Rc5 Rh1 $11) 57... Ne8 {[%emt 0:00:00]} 58. h7 {[%emt 0:00:37]} (58. Kf5 $142 Rf8+ 59. Kxe5 Rf1 60. Rg7+ Kd8 61. Rg8 Rh1 62. h7 Ke7 63. h8=Q) 58... Ke7 {[%emt 0:00:00]} 59. Kf5 {[%emt 0:00:32]} Rf8+ {[%emt 0:00:00]} 60. Kxe5 {[%emt 0:00:11]} 1-0

[Event "Chess Ladies Graz 2024"]
[Site "Graz"]
[Date "2024.02.29"]
[Round "6.2"]
[White "Bodnaruk, Anastasia"]
[Black "Trippold, Denise"]
[Result "1-0"]
[ECO "C02"]
[WhiteElo "2340"]
[BlackElo "2141"]
[Annotator "TA"]
[PlyCount "67"]
[EventDate "2024.02.25"]
[EventType "tourn"]
[EventCountry "AUT"]
[SourceTitle "playchess.com"]
[Source "ChessBase"]
[SourceQuality "1"]
[TimeControl "40/5400+30:1800+30"]

{[%evp 17,67,0,8,-1,-20,-19,2,33,79,60,65,56,108,98,113,106,115,89,139,121,175,77,221,170,203,226,231,190,293,257,266,273,255,263,406,406,472,429,468,447,464,465,580,569,571,569,539,527,29971,29972,5314,567]} 1. e4 {[%emt 0:00:04]} e6 {[%emt 0:00:14]} 2. d4 {[%emt 0:00:13]} d5 {[%emt 0:00:05]} 3. e5 {[%emt 0:00:04]} c5 {[%emt 0:00:12]} 4. c3 {[%emt 0:00:04][%cal Bc2c3,Bc3d4][%mdl 32]} Nc6 {[%emt 0:00:10]} 5. Nf3 {[%emt 0:00:08]} Bd7 {[%emt 0:00:17]} 6. Be2 {[%emt 0:00:34]} Nge7 {[%emt 0:00:21]} 7. Na3 {[%emt 0:00:41][%cal Bb1a3,Ba3c2,Bc2d4][%mdl 32]} cxd4 {[%emt 0:00:29]} 8. cxd4 {[%emt 0:00:47]} Nf5 {[%emt 0:01:02]} 9. Nc2 {[%emt 0:00:11]} Be7 {[%emt 0:00:39]} 10. g3 {[%emt 0:06:09]} O-O {[%emt 0:02:35]} 11. h4 {[%emt 0:02:07]} f6 {[%emt 0:14:20]} 12. g4 {[%emt 0:11:51] The position is equal.} Nfxd4 {[%emt 0:01:05]} 13. Ncxd4 $16 {[%emt 0:04:22]} ({Much weaker is} 13. Nfxd4 fxe5 14. Nxc6 Bxc6 $11) 13... Nxe5 {[%emt 0:02:55]} 14. Rg1 {[%emt 0:01:54]} Nc6 {[%emt 0:12:26]} (14... Nf7 $14) 15. h5 {[%emt 0:05:30]} Rc8 {[%emt 0:05:00]} 16. Kf1 {[%emt 0:01:23]} Qe8 {[%emt 0:08:41]} 17. b3 {[%emt 0:03:23]} Qf7 {[%emt 0:03:48]} ({Black should play} 17... Ne5) 18. Bb2 {[%emt 0:02:38]} Kh8 {[%emt 0:10:49] [#]} (18... Nb4 $16 19. a3 Nc6) 19. h6 {[%emt 0:05:55]} gxh6 {[%emt 0:01:49] Loses the game.} (19... g6 $16) 20. Qd2 {[%emt 0:02:56]} Bb4 {[%emt 0:15:00]} 21. Qxh6 {[%emt 0:02:53]} Nxd4 {[%emt 0:00:08]} 22. Bxd4 {[%emt 0:07:26][%cal Og4g5] Strongly threatening g5!} Bc3 {[%emt 0:03:43]} (22... e5 {is a better defense.}) 23. Rd1 {[%emt 0:03:22]} Qg6 {[%emt 0:03:18]} 24. Qe3 {[%emt 0:07:30]} Bxd4 {[%emt 0:03:45]} 25. Qxd4 {[%emt 0:00:27]} a6 {[%emt 0:05:18]} (25... Bc6 {was necessary.} 26. Qd2 (26. Qxa7 e5 $18) 26... e5) 26. g5 $18 {[%emt 0:02:29]} Rc2 {[%emt 0:01:45]} 27. Bd3 {[%emt 0:09:24]} Bb5 {[%emt 0:00:02]} 28. Bxb5 {[%emt 0:00:07]} axb5 {[%emt 0:00:01]} 29. Re1 {[%emt 0:00:32][%cal Bd1e1,Be1e5,Be5g5][%mdl 32]} Qf5 {[%emt 0:02:17]} 30. Rg3 {[%emt 0:01:33]} e5 {[%emt 0:02:20]} 31. Qxd5 {[%emt 0:01:28]} fxg5 {[%emt 0:00:11]} 32. Rxe5 {[%emt 0:01:36]} Qf4 {[%emt 0:00:57]} 33. Rexg5 {[%emt 0:01:49]} (33. Qxb5 g4 34. Qxb7 Rc1+ 35. Kg2 gxf3+ 36. Qxf3 Qh6 $16) 33... Rcc8 {[%emt 0:00:40]} 34. Qe5+ {[%emt 0:00:53] Weighted Error Value: White=0.12 (very precise) /Black=0.50.  Mistake:       	White=1     	Black=7      Inaccurate:     	---       	Black=1      OK:         	White=10    	Black=5      Best:        	White=1     	Black=2} 1-0

[Event "Chess Ladies Graz 2024"]
[Site "Graz"]
[Date "2024.02.29"]
[Round "6.3"]
[White "Mayrhuber, Nikola"]
[Black "Mkrtchian, Lilit"]
[Result "0-1"]
[ECO "A90"]
[WhiteElo "2009"]
[BlackElo "2378"]
[Annotator "TA"]
[PlyCount "64"]
[EventDate "2024.02.25"]
[EventType "tourn"]
[EventCountry "AUT"]
[SourceTitle "playchess.com"]
[Source "ChessBase"]
[SourceQuality "1"]
[TimeControl "40/5400+30:1800+30"]

{[%evp 14,64,18,14,41,41,54,44,39,39,43,12,11,-5,0,0,-6,-13,0,-60,-51,-134,-117,-153,-146,-163,-160,-181,-170,-207,-187,-239,-245,-218,-200,-251,-208,-207,-212,-364,-366,-378,-367,-522,-506,-523,-525,-2012,-1700,-1968,-1903,-29994,-29994]} 1. d4 {[%emt 0:00:02]} e6 {[%emt 0:00:24]} 2. c4 {[%emt 0:00:05]} f5 {[%emt 0:00:26]} 3. g3 {[%emt 0:00:13]} Nf6 {[%emt 0:00:12]} 4. Bg2 {[%emt 0:00:07]} d5 {[%emt 0:00:33]} 5. Nf3 {[%emt 0:00:14]} Bd6 {[%emt 0:01:38]} 6. O-O {[%emt 0:00:46]} c6 {[%emt 0:00:05]} 7. b3 {[%emt 0:00:33]} Qe7 {[%emt 0:00:24]} 8. Ne5 {[%emt 0:01:04]} Nbd7 {[%emt 0:00:58]} 9. Bb2 {[%emt 0:02:13]} Ne4 {[%emt 0:12:27]} 10. Qc1 {[%emt 0:05:24]} Nxe5 {[%emt 0:09:59] White is slightly better.} 11. dxe5 {[%emt 0:00:09]} Bc5 {[%emt 0:00:42]} 12. Ba3 {[%emt 0:02:17]} h5 {[%emt 0:04:26]} 13. Bxe4 {[%emt 0:13:36] [#] Black must now prevent Bxc5.} fxe4 {[%emt 0:12:27]} 14. Bxc5 {[%emt 0:02:41]} Qxc5 {[%emt 0:00:05]} 15. Qg5 {[%emt 0:00:23]} Bd7 {[%emt 0:04:26]} 16. cxd5 {[%emt 0:10:23]} (16. Qg6+ $11 Kf8 17. Nd2) 16... exd5 $15 {[%emt 0:10:41]} 17. Qg6+ {[%emt 0:01:52] White is on the road to losing.} ({White should play} 17. e6 $1 $15 Bxe6 18. Qg6+ Kd7 19. Qxg7+ Qe7 20. Qxe7+ Kxe7 21. Nc3) 17... Kf8 $17 {[%emt 0:00:19]} 18. e6 {[%emt 0:02:30]} Be8 {[%emt 0:00:25] Inhibits Qf7+.} 19. Qf5+ {[%emt 0:00:09]} Kg8 {[%emt 0:00:21]} 20. Nd2 {[%emt 0:01:32]} Qe7 {[%emt 0:06:37]} 21. b4 {[%emt 0:25:11]} Rh6 $1 {[%emt 0:03:41]} 22. Nb3 {[%emt 0:03:10]} (22. b5 $142) 22... Rxe6 $19 {[%emt 0:00:30][%cal Oe6f6]} 23. a3 {[%emt 0:01:49]} h4 {[%emt 0:15:52]} 24. Qh3 {[%emt 0:04:31]} hxg3 {[%emt 0:03:33]} 25. fxg3 {[%emt 0:01:48]} Rh6 {[%emt 0:00:18] Prevents Nd4} 26. Qg2 {[%emt 0:01:39]} (26. Qf5) 26... Bd7 {[%emt 0:00:23]} 27. h4 {[%emt 0:02:52]} g5 {[%emt 0:01:59]} 28. Nd4 {[%emt 0:01:04]} (28. Rac1 $142) 28... Qg7 {[%emt 0:04:55]} 29. Rad1 {[%emt 0:03:08]} gxh4 {[%emt 0:00:10]} 30. Rf5 {[%emt 0:03:45]} hxg3 {[%emt 0:00:47][%cal Oh6h2] [#] Strongly threatening ...Rh2!} 31. Rf4 {[%emt 0:07:45]} Rh2 {[%emt 0:00:53]} 32. Qf1 {[%emt 0:00:37]} Qh6 {[%emt 0:01:10] Weighted Error Value: White=0.68/Black=0.05 (flawless) .  Mistake:       	White=5     	---        Inaccurate:     	White=3     	---        OK:         	White=7     	Black=8      Best:        	White=1     	Black=5      Strong:       	---       	Black=1} 0-1

[Event "Chess Ladies Graz 2024"]
[Site "Graz"]
[Date "2024.02.29"]
[Round "6.4"]
[White "Brunello, Marina"]
[Black "Schloffer, Jasmin-Denise"]
[Result "1/2-1/2"]
[ECO "B12"]
[WhiteElo "2345"]
[BlackElo "2151"]
[Annotator "TA"]
[PlyCount "46"]
[EventDate "2024.02.25"]
[EventType "tourn"]
[EventCountry "AUT"]
[SourceTitle "playchess.com"]
[Source "ChessBase"]
[SourceQuality "1"]
[TimeControl "40/5400+30:1800+30"]

{[%evp 9,46,13,18,18,6,12,10,0,3,-4,14,12,22,-1,4,-4,0,0,0,-27,-21,-32,-18,-12,-28,-29,-29,-49,-47,-38,-44,-37,-36,-45,-29,-39,-35,-42,-49]} 1. e4 {[%emt 0:00:02]} c6 {[%emt 0:00:06]} 2. d4 {[%emt 0:00:34]} d5 {[%emt 0:00:05]} 3. e5 {[%emt 0:00:03]} c5 {[%emt 0:00:03]} 4. Nf3 {[%emt 0:00:13]} cxd4 {[%emt 0:00:06]} 5. Nxd4 {[%emt 0:02:37]} Nc6 {[%emt 0:00:13]} 6. Nxc6 {[%emt 0:00:03]} bxc6 {[%emt 0:00:03]} 7. Bd3 {[%emt 0:00:03]} e6 {[%emt 0:00:11]} 8. O-O {[%emt 0:00:04] The position is equal.} Ne7 {[%emt 0:00:13]} 9. Nd2 {[%emt 0:00:05]} a5 {[%emt 0:00:16]} 10. Qe2 {[%emt 0:00:31]} Ng6 {[%emt 0:02:29]} 11. g3 {[%emt 0:00:05] Prevents Nf4.} Qc7 {[%emt 0:09:58]} 12. Re1 {[%emt 0:02:18]} Bc5 {[%emt 0:08:34]} 13. h4 {[%emt 0:02:51]} f6 {[%emt 0:10:04]} 14. Nf3 {[%emt 0:07:12]} Nxe5 {[%emt 0:05:29]} 15. Nxe5 {[%emt 0:07:06]} Qxe5 {[%emt 0:00:18]} 16. Qxe5 {[%emt 0:00:05]} fxe5 {[%emt 0:00:03]} 17. Rxe5 {[%emt 0:00:05]} O-O {[%emt 0:01:22]} 18. Re2 {[%emt 0:01:09] [#]} e5 $1 {[%emt 0:04:02] Against Bf4. aiming for ...e4.} 19. Be3 $1 {[%emt 0:02:01]} Bd6 {[%emt 0:02:15] White must now prevent ...e4.} 20. c3 {[%emt 0:00:06]} Bg4 {[%emt 0:06:18][%cal Oe5e4] ...e4! would now be deadly.} 21. Ree1 {[%emt 0:04:44]} Rab8 {[%emt 0:01:51]} 22. Rab1 {[%emt 0:01:31]} Rf7 {[%emt 0:03:02]} 23. Rec1 {[%emt 0:09:36]} c5 {[%emt 0:09:35] Weighted Error Value: White=0.06 (flawless) /Black=0.03 (flawless) .  Inaccurate:     	White=1     	---        OK:         	White=6     	Black=5      Strong:       	White=1     	---} 1/2-1/2

[Event "Chess Ladies Graz 2024"]
[Site "Graz"]
[Date "2024.02.29"]
[Round "6.5"]
[White "Atalik, Ekaterina"]
[Black "Froewis, Annika"]
[Result "1-0"]
[ECO "E48"]
[WhiteElo "2405"]
[BlackElo "2133"]
[Annotator "TA"]
[PlyCount "77"]
[EventDate "2024.02.25"]
[EventType "tourn"]
[EventCountry "AUT"]
[SourceTitle "playchess.com"]
[Source "ChessBase"]
[SourceQuality "1"]
[TimeControl "40/5400+30:1800+30"]

{[%evp 11,77,-8,15,13,16,7,38,30,59,40,53,47,48,46,64,8,16,0,0,0,29,16,32,43,47,40,29,20,166,164,193,199,178,162,230,209,337,341,466,458,635,654,655,651,671,645,629,621,956,923,962,900,894,857,1010,1011,1337,1222,1571,1077,29984,1899,29990,29991,29991,29992,29992,29993]} 1. d4 {[%emt 0:00:05]} Nf6 {[%emt 0:00:05]} 2. c4 {[%emt 0:00:05]} e6 {[%emt 0:00:03]} 3. Nc3 {[%emt 0:00:14]} Bb4 {[%emt 0:00:07]} 4. e3 {[%emt 0:00:31][%cal Be2e3,Be3e4,Be4e5][%mdl 32]} O-O {[%emt 0:00:19]} 5. Bd3 {[%emt 0:00:30]} d5 {[%emt 0:00:51]} 6. Nge2 {[%emt 0:00:44]} Re8 {[%emt 0:01:42]} 7. O-O {[%emt 0:01:55]} Bf8 {[%emt 0:04:41]} 8. e4 {[%emt 0:02:36]} dxc4 {[%emt 0:09:31]} 9. Bxc4 {[%emt 0:00:51][%cal Bd3c4,Bc4b3,Bb3c2][%mdl 32] White is slightly better.} a6 {[%emt 0:00:14]} 10. e5 {[%emt 0:06:29]} Nfd7 {[%emt 0:03:58]} 11. f4 {[%emt 0:02:26]} b5 {[%emt 0:01:38]} 12. Bb3 {[%emt 0:01:06]} c5 {[%emt 0:01:02]} 13. d5 {[%emt 0:03:07] White is more active.} (13. Be3 $14) 13... c4 {[%emt 0:01:20]} 14. Bc2 {[%emt 0:02:51]} exd5 {[%emt 0:03:57]} 15. Nxd5 {[%emt 0:09:15]} (15. Qxd5 Qb6+ 16. Kh1 Bb7 $15) 15... Nc5 {[%emt 0:05:52]} 16. Nec3 {[%emt 0:04:00]} Nbd7 {[%emt 0:03:56]} 17. Be3 {[%emt 0:05:08]} Bb7 {[%emt 0:01:34]} 18. b4 {[%emt 0:05:25]} cxb3 {[%emt 0:10:05]} 19. axb3 $40 {[%emt 0:00:23][%cal Ba2b3,Bb3b4][%mdl 160] Strongly threatening b4. White mounts an attack.} Rc8 {[%emt 0:03:10] This move loses the game for Black.} (19... a5 $1 $11) 20. b4 $18 {[%emt 0:06:16]} Ne6 {[%emt 0:01:04][%cal Of8b4] [#]} 21. Qd3 $1 {[%emt 0:08:49][%csl Gc2][%cal Rd3h7]} g6 {[%emt 0:01:21]} 22. Rad1 {[%emt 0:00:32]} Qh4 {[%emt 0:04:10]} (22... a5 $142) 23. Qe2 {[%emt 0:04:26]} Ng7 {[%emt 0:05:56]} (23... Qh5 {might work better.} 24. Qxh5 gxh5) 24. Ne4 {[%emt 0:05:13]} Kh8 {[%emt 0:12:36]} 25. Ng5 {[%emt 0:01:31]} Bxd5 {[%emt 0:05:34]} 26. Rxd5 {[%emt 0:00:30]} Re7 {[%emt 0:00:30]} 27. g3 {[%emt 0:08:57]} Qh5 {[%emt 0:02:13]} 28. Qd2 {[%emt 0:00:27]} Rxc2 {[%emt 0:04:22]} 29. Qxc2 {[%emt 0:00:07][%cal Od5d7] Threatens to win with Rxd7!} Nf5 {[%emt 0:01:25]} 30. Bf2 {[%emt 0:06:33]} Kg7 {[%emt 0:04:13]} 31. Qb2 {[%emt 0:02:45][%cal Od5d7] Black must now prevent Rxd7!} Kg8 {[%emt 0:00:41]} 32. Rfd1 {[%emt 0:01:31]} Nxe5 {[%emt 0:01:36]} 33. Rd8 {[%emt 0:02:19]} f6 {[%emt 0:02:55][%cal Bf7f6,Bf6g5][%mdl 32]} 34. fxe5 {[%emt 0:01:13]} fxg5 {[%emt 0:03:01] [#]} 35. e6 $1 {[%emt 0:03:24][%cal Od8f8][%mdl 512] White wants to mate with Rxf8+!} Rxe6 {[%emt 0:01:09]} (35... Qh6 36. Bc5) 36. Bc5 {[%emt 0:01:23]} (36. R1d7 $142 Ne7 37. Qb3 Qg4 38. Rxe7 Qc4 39. Qf3 (39. Rxe6 Qxb3 40. Ree8 Qxb4 $16) (39. Qxc4 bxc4 40. Rxe6 c3 41. Re7 c2 42. Be3 h5 43. Kg2 c1=Q 44. Bxc1 h4) 39... Qc1+ 40. Kg2 (40. Rd1 Qxd1+ 41. Qxd1 Bxe7 $18) 40... Qf4 41. gxf4 (41. Rxe6 Qxf3+ 42. Kxf3 Kf7 $18)) 36... Re8 {[%emt 0:00:31]} 37. Qb3+ {[%emt 0:00:53] White mates.} Kg7 {[%emt 0:00:24]} 38. Rxe8 {[%emt 0:00:28]} Bxc5+ {[%emt 0:00:24]} 39. bxc5 {[%emt 0:00:13] Weighted Error Value: White=0.08 (flawless) /Black=0.67.  Mistake:       	White=1     	Black=3      Inaccurate:     	---       	Black=5      OK:         	White=8     	Black=6      Best:        	---       	Black=1      Strong:       	White=1     	---} 1-0